bitfinex-derivatives/quotes_ETHF0:USTF0_20241013
["timestamp","ask_amount","ask_price","bid_price","bid_amount"]
[1728781716625,1.58085505,2472.7,2472.5,1.17]
[1728781716832,1.58085505,2472.7,2472.5,1.5745]
[1728781717232,3.99752505,2472.8,2472.5,1.5745]
[1728781718330,0.40447,2472.7,2472.5,1.17]
[1728781719731,1.98532505,2472.7,2472.5,1.17]
[1728781721435,0.40447,2472.7,2472.5,1.17]
[1728781722034,1.58085505,2472.7,2472.5,1.17]
[1728781722632,3.99752505,2472.8,2472.5,1.17]
[1728781723032,0.40448,2472.7,2472.5,1.17]
[1728781724628,3.99751505,2472.8,2472.5,1.5745]
[1728781725937,2.82751505,2472.8,2472.7,1.17]
[1728781728636,1.58085505,2472.9,2472.7,1.57446]
[1728781728943,1.58085505,2472.9,2472.8,1.5911]
[1728781729235,1.58085505,2472.9,2472.8,2.37906]
[1728781729440,5.60126505,2473.1,2472.8,2.37906]
[1728781729638,5.19685505,2473.1,2472.9,0.4231]
[1728781729836,1.98905505,2473.1,2473.0,1.17]
[1728781730041,1.58085505,2473.1,2473.0,1.57442]
[1728781730340,1.58085505,2473.2,2473.0,1.57442]
[1728781730539,1.58085505,2473.2,2473.1,1.17]
[1728781730926,1.98524505,2473.2,2473.1,1.17]
[1728781735637,0.40439,2473.2,2473.1,1.17]
[1728781736239,1.98313783,2473.2,2473.1,1.17]
[1728781736639,0.40439,2473.2,2473.1,1.17]
[1728781741559,1.57932901,2473.2,2473.1,1.17]
[1728781741944,1.57932901,2473.2,2473.1,1.5549]
[1728781742144,2.79371901,2473.3,2473.1,1.5549]
[1728781742345,1.21439,2473.3,2473.2,1.572]
[1728781742866,1.57940473,2473.4,2473.2,1.572]
[1728781743155,1.57940473,2473.4,2473.3,1.17]
[1728781743349,1.57940473,2473.4,2473.3,1.5753]
[1728781744449,5.19155473,2473.5,2473.3,1.5753]
[1728781744948,5.19155473,2473.5,2473.4,0.4209]
[1728781747351,6.36155473,2473.5,2473.4,0.4209]
[1728781748051,5.19155473,2473.5,2473.4,0.4209]
[1728781749244,1.98375473,2473.5,2473.4,0.4209]
[1728781751454,10.00040473,2473.5,2473.2,0.402]
[1728781751656,10.00040473,2473.5,2473.0,0.4032]
[1728781751657,0.4044,2473.2,2473.0,0.4032]
[1728781751846,0.80341,2473.1,2473.0,1.5732]
[1728781752061,1.22741,2473.1,2473.0,1.5732]
[1728781752661,0.823,2473.1,2473.0,1.17]
[1728781752849,1.993,2473.1,2472.9,1.5606]
[1728781753047,1.993,2473.1,2472.8,0.4032]
[1728781753357,0.40446,2472.8,2472.7,0.3906]
[1728781753956,0.82846,2472.8,2472.7,0.3906]
[1728781754550,0.4045,2472.6,2472.4,1.46444238]
[1728781754754,0.4045,2472.6,2472.5,1.17]
[1728781756853,4.8018,2472.8,2472.5,1.17]
[1728781757061,0.424,2472.8,2472.7,1.17]
[1728781757760,0.424,2472.8,2472.7,2.0083]
[1728781758659,0.424,2472.8,2472.7,2.4275]
[1728781759957,0.82846,2472.8,2472.7,2.0083]
[1728781760264,0.82846,2472.8,2472.7,1.5906]
[1728781762664,0.424,2472.8,2472.7,1.5906]
[1728781764665,0.424,2472.8,2472.7,1.99507]
[1728781765059,0.424,2472.8,2472.7,1.5906]
[1728781769771,1.57940473,2473.0,2472.7,1.5906]
[1728781769962,5.18620473,2473.1,2472.9,1.17]
[1728781770162,1.97840473,2473.1,2473.0,1.5587]
[1728781770467,1.57940473,2473.1,2473.0,1.96312]
[1728781770677,6.24528035,2473.4,2473.1,0.40441]
[1728781770678,1.57940473,2473.2,2473.1,0.40441]
[1728781770864,1.57940473,2473.2,2473.1,2.38091]
[1728781771286,6.78477473,2473.4,2473.1,1.9765]
[1728781771767,1.57438,2473.3,2473.1,1.9765]
[1728781771966,1.57438,2473.3,2473.1,0.8065]
[1728781772385,1.57438,2473.3,2472.8,1.59160698]
[1728781772386,0.40444,2472.9,2472.8,0.24597238]
[1728781772673,0.4045,2472.5,2472.4,1.59160698]
[1728781772862,4.3778,2472.6,2472.4,1.32964703]
[1728781773066,1.61496,2472.8,2472.5,1.17]
[1728781773271,2.50748,2472.7,2472.5,1.9882]
[1728781773479,4.61366871,2472.7,2472.5,1.9882]
[1728781773664,3.27618871,2472.7,2472.5,1.9882]
[1728781773867,1.57797991,2472.6,2472.5,1.9882]
[1728781774061,3.15246991,2472.6,2472.5,0.8182]
[1728781775266,10.00057991,2472.6,2472.1,1.17]
[1728781775468,1.57455,2472.3,2472.2,0.7968]
[1728781776274,0.3891,2472.4,2472.2,0.7968]
[1728781776275,1.17,2472.4,2472.2,0.7968]
[1728781776472,1.98413,2472.4,2472.2,0.7968]
[1728781776667,1.57454,2472.3,2472.2,0.7968]
[1728781777678,1.17,2472.3,2472.2,0.7968]
[1728781779283,1.17,2472.3,2472.2,1.9668]
[1728781780672,1.5796,2472.4,2472.2,1.9668]
[1728781780872,4.7823,2472.6,2472.3,1.17]
[1728781781074,5.7153,2472.6,2472.4,1.17]
[1728781781381,5.7153,2472.6,2472.3,1.17]
[1728781781382,1.17,2472.5,2472.3,1.17]
[1728781782780,1.57451,2472.5,2472.3,1.17]
[1728781784079,1.57451,2472.5,2472.2,0.7968]
[1728781784276,1.17,2472.4,2472.2,1.9668]
[1728781785590,1.17,2472.3,2472.2,0.7968]
[1728781785780,1.989,2472.3,2472.2,0.7968]
[1728781785982,2.39354,2472.3,2472.2,0.7968]
[1728781786783,1.989,2472.3,2472.2,0.7968]
[1728781787186,2.39354,2472.3,2472.2,0.7968]
[1728781787882,1.989,2472.3,2472.2,0.7968]
[1728781790979,1.5664,2472.3,2472.2,0.7968]
[1728781791189,1.97094,2472.3,2472.2,0.7968]
[1728781791783,1.5664,2472.3,2472.2,0.7968]
[1728781792085,1.17,2472.4,2472.2,0.7968]
[1728781792883,1.9583,2472.5,2472.2,2.37135]
[1728781793580,1.17,2472.4,2472.2,1.20135]
[1728781794579,1.19281,2472.5,2472.2,1.20135]
[1728781794786,1.17,2472.4,2472.3,0.40453]
[1728781795275,1.17,2472.7,2472.6,0.40449]
[1728781795890,1.17,2472.7,2472.6,1.1654]
[1728781796081,1.17,2472.7,2472.6,1.56989]
[1728781799287,1.57797991,2472.9,2472.6,2.3354]
[1728781799486,2.36457991,2473.0,2472.8,1.17]
[1728781799680,1.17,2473.1,2472.9,1.5579]
[1728781799987,1.17,2473.1,2473.0,0.8061]
[1728781800901,0.40443,2473.0,2472.7,0.40447]
[1728781801080,1.17,2472.8,2472.7,0.3879]
[1728781802194,1.57446,2472.8,2472.7,0.3879]
[1728781804091,0.40448,2472.7,2472.5,3.2078]
[1728781804394,1.17,2472.6,2472.5,3.2078]
[1728781805289,1.5782,2472.6,2472.5,3.2078]
[1728781805794,0.4082,2472.6,2472.5,3.2078]
[1728781806493,0.40451,2472.5,2472.3,0.8344]
[1728781806890,0.4025,2472.4,2472.3,0.8344]
[1728781809395,0.4025,2472.4,2472.3,2.0044]
[1728781810292,5.6173,2472.4,2472.0,1.59160698]
[1728781810516,1.97703,2472.4,2472.1,2.36746]
[1728781811194,1.5725,2472.4,2472.1,1.9629]
[1728781811397,1.97703,2472.4,2472.1,1.9629]
[1728781813093,1.97703,2472.4,2472.1,2.36747]
[1728781813594,0.40454,2472.3,2472.1,1.9629]
[1728781813995,0.4025,2472.4,2472.2,1.17]
[1728781815295,0.4025,2472.4,2472.3,1.17]
[1728781817305,2.39066991,2472.6,2472.3,1.57453]
[1728781817507,2.39427991,2472.6,2472.4,1.17]
[1728781817806,2.39427991,2472.6,2472.5,0.4167]
[1728781818024,3.27618871,2472.7,2472.5,1.9912]
[1728781818025,1.57797991,2472.7,2472.5,1.9912]
[1728781818306,2.36513991,2472.8,2472.5,1.9912]
[1728781819099,1.5921,2472.9,2472.7,1.17]
[1728781819100,2.00007991,2472.9,2472.7,1.17]
[1728781819406,2.00007991,2472.9,2472.5,0.4167]
[1728781819407,1.57797991,2473.0,2472.8,1.96056]
[1728781819619,1.57797991,2473.1,2473.0,0.40442]
[1728781819827,1.57797991,2473.2,2473.0,1.17]
[1728781820019,1.57797991,2473.2,2473.1,1.57441]
[1728781820414,1.57797991,2473.3,2473.1,1.17]
[1728781820710,3.13067991,2473.5,2473.2,1.57439]
[1728781820922,0.4221,2473.6,2473.4,1.57436]
[1728781821105,0.4221,2473.6,2473.5,1.17]
[1728781822513,0.82644,2473.6,2473.4,0.4003]
[1728781822714,0.82644,2473.6,2473.3,0.3861]
[1728781822715,0.3895,2473.5,2473.3,0.3861]
[1728781823714,0.79384,2473.5,2473.3,0.3861]
[1728781824312,0.40439,2473.2,2472.8,5.20385698]
[1728781824507,6.9527,2473.5,2472.9,0.4078]
[1728781824508,0.80741,2473.1,2472.9,0.4078]
[1728781824714,0.398,2473.0,2472.9,0.4078]
[1728781825519,0.40444,2472.9,2472.6,2.39670698]
[1728781825816,0.80243,2473.0,2472.6,1.20958]
[1728781826410,0.40447,2472.8,2472.3,9.36893698]
[1728781826624,0.403,2472.7,2472.3,3.6156]
[1728781827222,0.80748,2472.7,2472.3,4.02014]
[1728781828523,0.80748,2472.7,2472.3,0.81234]
[1728781828914,0.403,2472.7,2472.3,0.81234]
[1728781829119,0.403,2472.7,2472.4,0.40452]
[1728781829319,0.80747,2472.7,2472.3,0.81233]
[1728781830013,0.403,2472.7,2472.4,0.40452]
[1728781830519,0.403,2472.7,2472.5,0.3856]
[1728781830720,0.40445,2472.9,2472.5,0.7901]
[1728781831417,0.40445,2472.9,2472.5,0.3856]
[1728781831713,0.40444,2472.9,2472.5,0.3856]
[1728781831908,0.40445,2472.9,2472.5,0.7901]
[1728781833216,0.7864,2473.0,2472.7,0.40446]
[1728781833416,1.19083,2473.0,2472.8,0.4075]
[1728781834219,0.7864,2473.0,2472.8,0.4075]
[1728781835117,0.40441,2473.1,2472.8,0.4075]
[1728781835320,0.4044,2473.2,2472.8,0.81195]
[1728781837226,0.40441,2473.1,2472.8,0.81195]
[1728781838014,0.4044,2473.2,2472.8,0.81195]
[1728781838415,0.40441,2473.1,2472.8,0.81195]
[1728781840323,4.0348,2473.3,2472.8,0.81195]
[1728781840617,0.4044,2473.2,2472.9,0.4011]
[1728781840822,0.4044,2473.2,2473.0,0.3964]
[1728781841815,0.827,2473.3,2473.0,0.80082]
[1728781842232,1.98232991,2473.5,2473.1,0.40441]
[1728781842522,2.39462991,2473.5,2473.2,0.4217]
[1728781843229,1.99027991,2473.5,2473.2,0.4217]
[1728781843421,0.40437,2473.3,2473.2,0.4217]
[1728781843616,1.99027991,2473.5,2473.2,0.4217]
[1728781843916,0.40437,2473.4,2473.2,0.4217]
[1728781844315,0.40437,2473.3,2473.2,0.4217]
[1728781844726,0.40437,2473.3,2473.0,0.3964]
[1728781845025,0.40437,2473.3,2473.0,0.8181]
[1728781846218,0.40437,2473.3,2473.0,1.22252]
[1728781848432,0.40439,2473.2,2473.0,0.8181]
[1728781848923,4.51027991,2473.5,2473.0,0.8181]
[1728781849128,0.4044,2473.2,2473.0,0.8181]
[1728781849324,0.385,2473.1,2473.0,0.8181]
[1728781850427,0.78941,2473.1,2473.0,0.8181]
[1728781851332,0.385,2473.1,2472.6,0.40448]
[1728781851527,0.40445,2472.9,2472.6,1.20998]
[1728781852329,0.3897,2473.0,2472.6,1.20998]
[1728781852330,0.79413,2473.0,2472.6,1.20998]
[1728781852721,0.3897,2473.0,2472.6,1.20998]
[1728781852933,0.40445,2472.9,2472.6,1.20998]
[1728781854838,0.40445,2472.9,2472.6,0.8055]
[1728781855722,0.40445,2472.9,2472.6,1.20999]
[1728781856734,0.3897,2473.0,2472.6,0.8055]
[1728781857136,0.40447,2472.8,2472.6,0.8055]
[1728781857333,0.3897,2473.0,2472.6,0.8055]
[1728781857647,0.79667,2472.7,2472.6,0.8055]
[1728781858635,0.79667,2472.7,2472.6,1.9755]
[1728781859934,0.3922,2472.7,2472.6,1.9755]
[1728781860139,1.9721,2473.0,2472.6,2.37999]
[1728781860140,0.40444,2472.9,2472.6,2.37999]
[1728781860339,0.40444,2472.9,2472.8,1.17]
[1728781860340,0.79934,2472.9,2472.8,1.17]
[1728781860638,0.3949,2472.9,2472.8,1.17]
[1728781861940,0.79934,2472.9,2472.8,1.17]
[1728781863030,0.40449,2472.6,2472.5,0.4227]
[1728781863247,0.40449,2472.6,2472.5,1.17]
[1728781863829,0.4045,2472.5,2472.4,0.4213]
[1728781864040,1.2235,2472.5,2472.4,0.4213]
[1728781864546,14.3288,2472.5,2472.0,1.59160698]
[1728781864759,2.93457,2472.1,2471.7,1.59160698]
[1728781864980,0.40462,2471.8,2471.7,1.59160698]
[1728781865171,0.40462,2471.8,2471.7,1.32622593]
[1728781865375,4.45022,2471.8,2471.7,1.32622593]
[1728781866137,4.0456,2471.8,2471.7,1.32622593]
[1728781866744,3.2078,2471.9,2471.7,1.32622593]
[1728781867742,3.2078,2471.9,2471.5,0.40466]
[1728781868053,3.2078,2471.9,2471.4,2.93467]
[1728781868539,3.2078,2471.9,2471.5,0.40466]
[1728781869148,3.2078,2471.9,2471.7,0.40464]
[1728781869348,3.2078,2471.9,2471.6,0.79254]
[1728781869740,5.19033991,2472.2,2471.7,0.40463]
[1728781869960,1.57797991,2472.2,2471.7,0.4171]
[1728781870165,0.3979,2472.3,2471.9,0.4046]
[1728781870352,0.80244,2472.3,2472.0,0.3938]
[1728781870939,3.2078,2472.2,2472.0,0.3938]
[1728781871244,3.61236,2472.2,2472.0,0.3938]
[1728781871839,0.40456,2472.2,2472.0,0.3938]
[1728781872042,3.61236,2472.2,2472.0,0.3938]
[1728781873247,3.61236,2472.2,2471.8,0.3951]
[1728781873248,3.2078,2472.2,2471.8,0.3951]
[1728781873481,3.2078,2472.2,2471.7,0.8282]
[1728781873652,0.40459,2472.0,2471.7,0.8282]
[1728781874148,0.42,2471.9,2471.7,0.8282]
[1728781875643,3.2078,2472.2,2471.7,0.8282]
[1728781875644,3.61236,2472.2,2471.8,0.40462]
[1728781876154,3.61236,2472.2,2471.9,0.4]
[1728781876155,3.2078,2472.2,2471.9,0.4]
[1728781876653,3.61236,2472.2,2471.9,0.4]
[1728781877154,0.40456,2472.2,2471.9,0.4]
[1728781879555,0.40455,2472.2,2471.9,0.4]
[1728781879745,0.4237,2472.3,2471.9,0.4]
[1728781880150,0.40457,2472.1,2471.9,0.4]
[1728781881148,0.40456,2472.2,2471.9,0.4]
[1728781881355,0.4237,2472.3,2471.9,0.4]
[1728781881555,0.40457,2472.1,2471.9,0.4]
[1728781882855,0.4237,2472.3,2471.9,0.4]
[1728781883054,0.40456,2472.2,2471.9,0.4]
[1728781883455,0.40456,2472.2,2472.0,0.4015]
[1728781884849,0.4237,2472.3,2472.0,0.4015]
[1728781885160,0.82825,2472.3,2472.0,0.4015]
[1728781885353,0.4237,2472.3,2472.0,0.4015]
[1728781885559,3.6068,2472.4,2472.0,0.4015]
[1728781885752,3.6068,2472.4,2471.8,3.2078]
[1728781885945,0.79514,2472.3,2472.0,0.80268]
[1728781886149,0.3906,2472.3,2472.0,0.80268]
[1728781886360,0.3906,2472.3,2472.0,0.3981]
[1728781886555,0.3906,2472.3,2472.1,0.40456]
[1728781886956,0.3906,2472.3,2472.0,0.3981]
[1728781887180,0.3906,2472.3,2471.5,3.2078]
[1728781887181,3.61238,2472.1,2471.5,0.40467]
[1728781887466,3.2078,2472.1,2471.6,0.7826]
[1728781887651,0.3906,2472.0,2471.7,0.40463]
[1728781887960,0.3906,2472.0,2471.6,1.18724]
[1728781888157,0.79519,2472.0,2471.6,1.18724]
[1728781889056,0.4046,2471.9,2471.6,0.7826]
[1728781889356,0.8049,2471.9,2471.6,0.7826]
[1728781889658,0.80491,2471.9,2471.6,0.7826]
[1728781891054,0.4003,2471.9,2471.6,0.7826]
[1728781891358,0.40463,2471.8,2471.6,0.7826]
[1728781891755,0.3865,2471.7,2471.6,0.7826]
[1728781894257,0.3865,2471.7,2471.6,1.18725]
[1728781894461,0.3972,2472.0,2471.6,1.18725]
[1728781894963,0.4046,2471.9,2471.6,1.18725]
[1728781895156,0.8018,2472.0,2471.6,1.18725]
[1728781895356,0.3972,2472.0,2471.6,1.18725]
[1728781895567,0.40461,2471.9,2471.6,1.18725]
[1728781896263,0.8018,2472.0,2471.6,1.18725]
[1728781896862,0.3972,2472.0,2471.7,2.53]
[1728781897066,0.3972,2472.0,2471.8,0.40462]
[1728781898959,0.3972,2472.0,2471.7,2.53]
[1728781899166,0.3972,2472.0,2471.7,2.93463]
[1728781899758,0.3972,2472.0,2471.7,2.53]
[1728781899963,0.3972,2472.0,2471.8,0.40461]
[1728781901569,4.78577991,2472.4,2471.9,2.53]
[1728781901773,4.78577991,2472.4,2472.1,2.93456]
[1728781901774,3.6294,2472.4,2472.1,2.93456]
[1728781901968,3.2078,2472.4,2472.2,0.4035]
[1728781902357,3.2078,2472.4,2472.3,2.93454]
[1728781902766,1.99957991,2472.7,2472.3,6.97934]
[1728781902767,2.40404991,2472.7,2472.3,6.97934]
[1728781902966,1.57797991,2472.6,2472.4,0.3999]
[1728781903166,2.40404991,2472.7,2472.5,0.4126]
[1728781903867,0.82607,2472.7,2472.5,0.4126]
[1728781906462,0.4216,2472.7,2472.5,0.4126]
[1728781906769,4.78577991,2472.9,2472.5,2.9426]
[1728781906989,4.78577991,2472.9,2472.7,2.53]
[1728781907189,3.2078,2472.9,2472.8,0.81836]
[1728781907371,3.2078,2472.9,2472.8,5.25546]
[1728781908066,3.2078,2472.9,2472.8,1.21146]
[1728781909974,0.3979,2473.0,2472.8,1.21146]
[1728781911276,0.80233,2473.0,2472.8,0.807]
[1728781913180,0.40446,2472.8,2472.5,3.6204]
[1728781913372,0.40446,2472.8,2472.5,3.2078]
[1728781913977,4.0173,2473.0,2472.5,3.2078]
[1728781914176,0.40448,2472.7,2472.5,3.2078]
[1728781914473,0.3985,2472.6,2472.5,3.2078]
[1728781916476,0.8197,2472.6,2472.5,3.2078]
[1728781917776,1.22419,2472.6,2472.5,3.2078]
[1728781917973,0.8197,2472.6,2472.5,3.2078]
[1728781918483,1.22419,2472.6,2472.5,3.2078]
[1728781920376,0.8197,2472.6,2472.5,3.2078]
[1728781922473,10.8645,2472.6,2471.7,1.05635649]
[1728781922685,1.97837991,2472.5,2471.9,1.2002]
[1728781923072,0.40454,2472.3,2471.9,1.2002]
[1728781923279,0.40456,2472.2,2471.9,0.7956]
[1728781923476,0.40456,2472.2,2471.8,0.80252]
[1728781923477,0.421,2472.1,2471.8,0.80252]
[1728781923676,0.82557,2472.1,2471.8,0.3979]
[1728781924186,0.421,2472.1,2471.7,2.9258]
[1728781924476,0.40461,2471.9,2471.7,2.9258]
[1728781924871,0.3832,2471.8,2471.7,2.9258]
[1728781926983,0.3832,2471.8,2471.7,3.33044]
[1728781928795,0.421,2472.1,2471.9,0.4046]
[1728781929088,0.421,2472.1,2471.9,2.9346]
[1728781929381,0.421,2472.1,2472.0,0.416]
[1728781930888,0.421,2472.1,2471.9,2.53]
[1728781930889,0.421,2472.1,2471.7,0.3958]
[1728781931199,0.40459,2472.0,2471.7,0.3958]
[1728781931397,0.80339,2472.0,2471.7,0.3958]
[1728781932585,0.40461,2471.9,2471.7,0.3958]
[1728781932997,0.3848,2471.8,2471.7,0.3958]
[1728781936004,0.78942,2471.8,2471.7,0.3958]
[1728781936291,0.3848,2471.8,2471.7,0.3958]
[1728781936885,0.3848,2471.8,2471.6,0.401]
[1728781938590,0.78942,2471.8,2471.6,0.401]
[1728781938994,0.3848,2471.8,2471.6,0.401]
[1728781939291,0.40464,2471.7,2471.4,2.53]
[1728781939490,0.40464,2471.7,2471.4,2.9481]
[1728781939787,0.42,2471.6,2471.4,2.9481]
[1728781939989,0.82465,2471.6,2471.4,2.9481]
[1728781940198,0.4042,2471.5,2471.4,2.9481]
[1728781940492,0.80887,2471.5,2471.4,0.4181]
[1728781942986,0.4042,2471.5,2471.4,0.4181]
[1728781945599,0.80887,2471.5,2471.4,0.4181]
[1728781946093,0.4042,2471.5,2471.4,0.4181]
[1728781947797,3.2078,2471.9,2471.4,2.9481]
[1728781948098,0.40464,2471.7,2471.4,3.35278]
[1728781948496,0.40464,2471.7,2471.4,2.9481]
[1728781952504,0.40464,2471.7,2471.6,1.17]
[1728781964199,1.98261991,2471.7,2471.6,1.17]
[1728781964807,2.74797991,2471.7,2471.5,1.17]
[1728781965008,0.40466,2471.6,2471.5,1.17]
[1728781966606,1.98263991,2471.6,2471.5,1.17]
[1728781967102,0.40466,2471.6,2471.5,1.17]
[1728781967498,1.98263991,2471.6,2471.5,1.17]
[1728781969218,1.98263991,2471.6,2471.4,1.5881]
[1728781969219,0.40467,2471.5,2471.4,1.5881]
[1728781969418,1.23857,2471.5,2471.4,1.5881]
[1728781969720,2.81408179,2471.5,2471.4,1.5881]
[1728781969911,3.98408179,2471.5,2471.4,0.4181]
[1728781970614,2.40857,2471.5,2471.4,0.4181]
[1728781971613,4.51475871,2471.5,2471.4,0.4181]
[1728781972215,4.51475871,2471.5,2471.3,0.4218]
[1728781972216,8.03075977,2471.5,2471.3,0.4218]
[1728781972431,0.40471,2471.3,2471.2,1.17]
[1728781972628,2.74578977,2471.4,2471.1,1.83595649]
[1728781972826,0.4129,2471.2,2471.1,1.83595649]
[1728781973026,0.4129,2471.2,2471.1,3.00595649]
[1728781973916,0.4129,2471.2,2471.1,1.9496]
[1728781974310,0.4129,2471.2,2471.1,0.7796]
[1728781974631,0.4129,2471.2,2471.1,3.00595649]
[1728781975019,2.74578977,2471.4,2471.1,3.00595649]
[1728781975220,3.16438977,2471.4,2471.3,1.17]
[1728781977619,7.61546977,2471.4,2471.2,1.17]
[1728781977821,3.56907977,2471.4,2471.2,1.17]
[1728781978022,3.16438977,2471.4,2471.2,1.17]
[1728781978422,1.5747,2471.3,2471.1,1.83595649]
[1728781978626,1.5747,2471.3,2471.1,3.00595649]
[1728781979024,2.74578977,2471.3,2471.1,3.41068649]
[1728781979230,2.74578977,2471.3,2471.1,2.35433]
[1728781980521,1.57578977,2471.3,2471.2,1.17]
[1728781980718,1.57578977,2471.3,2471.2,1.57472]
[1728781980930,1.57578977,2471.3,2471.2,1.17]
[1728781981940,1.57578977,2471.3,2471.2,1.57472]
[1728781985531,2.74578977,2471.3,2471.2,1.17]
[1728781989445,2.74578977,2471.3,2471.2,1.57472]
[1728781989635,2.74578977,2471.3,2471.2,1.17]
[1728781990925,2.74578977,2471.3,2471.2,1.57472]
[1728781991232,2.74578977,2471.3,2471.2,1.17]
[1728781993336,1.57578977,2471.3,2471.2,1.57472]
[1728781995134,1.57578977,2471.4,2471.3,0.4047]
[1728781995434,1.57578977,2471.4,2471.3,1.5747]
[1728781996541,1.57578977,2471.5,2471.4,0.40468]
[1728781996743,1.57578977,2471.5,2471.4,0.82638]
[1728782000529,1.57578977,2471.5,2471.4,0.4217]
[1728782001136,1.57578977,2471.5,2471.4,0.82638]
[1728782001839,2.74578977,2471.5,2471.4,0.82638]
[1728782002633,2.74578977,2471.5,2471.4,0.4217]
[1728782004638,1.17,2471.5,2471.4,0.4217]
[1728782005534,2.10618871,2471.6,2471.4,0.4217]
[1728782005735,2.10618871,2471.6,2471.5,0.3957]
[1728782005938,3.68083871,2471.6,2471.5,0.3957]
[1728782008434,3.68083871,2471.6,2471.4,0.4217]
[1728782008643,0.40469,2471.4,2471.2,1.86116649]
[1728782008938,1.57609579,2471.4,2471.2,2.62645649]
[1728782009153,1.57609579,2471.4,2471.3,0.8193]
[1728782009336,1.57609579,2471.4,2471.3,1.47095649]
[1728782009537,1.57609579,2471.4,2471.3,0.8193]
[1728782010550,3.27618871,2471.5,2471.3,0.8193]
[1728782011046,2.10618871,2471.4,2471.3,0.8193]
[1728782011339,1.57617914,2471.4,2471.3,0.8193]
[1728782012538,3.27618871,2471.5,2471.3,0.8193]
[1728782013046,1.57623727,2471.4,2471.3,0.8193]
[1728782013343,3.68085871,2471.5,2471.3,0.8193]
[1728782013737,3.68085871,2471.5,2471.4,0.4208]
[1728782014942,3.68085871,2471.5,2471.2,2.62645649]
[1728782015149,1.57641882,2471.3,2471.2,3.45196649]
[1728782016947,1.57641882,2471.3,2471.2,3.04725649]
[1728782017660,1.57641882,2471.3,2471.2,4.3787133]
[1728782018044,1.57641882,2471.3,2471.2,3.04725649]
[1728782018241,3.15111882,2471.3,2471.2,1.05635649]
[1728782019247,1.57641882,2471.3,2471.2,1.05635649]
[1728782019442,1.57641882,2471.3,2471.2,2.38783195]
[1728782019744,1.57641882,2471.3,2471.2,1.05635649]
[1728782019941,1.98111882,2471.3,2471.2,1.05635649]
[1728782023043,4.06368871,2471.4,2471.1,2.22635649]
[1728782023249,1.57628553,2471.2,2471.1,2.22635649]
[1728782024043,1.57628553,2471.2,2471.1,2.63108649]
[1728782024239,1.57628553,2471.2,2471.1,3.96255193]
[1728782024456,1.57628553,2471.2,2471.1,2.22635649]
[1728782025954,1.98098553,2471.3,2471.1,3.55784134]
[1728782026153,1.98098553,2471.3,2471.1,2.22635649]
[1728782026355,1.57628553,2471.2,2471.1,2.22635649]
[1728782026554,1.57628553,2471.2,2471.1,3.55783109]
[1728782026755,1.57628553,2471.2,2471.1,2.22635649]
[1728782027248,1.98098553,2471.3,2471.1,3.55782512]
[1728782027463,1.98098553,2471.3,2471.1,2.22635649]
[1728782027955,1.57628553,2471.2,2471.1,2.22635649]
[1728782028354,1.98100553,2471.2,2471.1,1.05635649]
[1728782028553,1.57628553,2471.2,2471.1,2.22635649]
[1728782029047,1.98100553,2471.2,2471.1,2.22635649]
[1728782038564,1.57628553,2471.2,2471.1,2.22635649]
[1728782040469,1.57628553,2471.3,2471.1,2.22635649]
[1728782040675,1.57628553,2471.3,2471.2,2.63107649]
[1728782040866,1.57628553,2471.3,2471.2,1.05635649]
[1728782041179,4.0464,2471.2,2470.4,0.80591751]
[1728782041396,5.95329638,2470.7,2470.5,0.72082669]
[1728782041588,1.57553269,2470.6,2470.5,0.3827]
[1728782041880,1.57553269,2470.7,2470.5,0.3827]
[1728782042086,1.57553269,2470.7,2470.6,1.17]
[1728782042285,1.57553269,2470.7,2470.6,1.982]
[1728782042286,5.95333269,2470.7,2470.6,1.982]
[1728782042589,4.78333269,2470.7,2470.6,1.982]
[1728782043068,3.2078,2470.7,2470.6,1.982]
[1728782046768,4.3778,2470.7,2470.6,0.812]
[1728782047578,4.3778,2470.7,2470.5,0.3827]
[1728782047873,4.3778,2470.7,2470.5,1.1649]
[1728782048370,1.57482,2470.6,2470.5,1.1649]
[1728782048974,1.57482,2470.6,2470.5,0.3827]
[1728782049277,0.40485,2470.4,2470.2,1.9522]
[1728782049470,1.17,2470.4,2470.2,2.3752]
[1728782049669,1.57486,2470.4,2470.2,2.3752]
[1728782050480,1.57486,2470.3,2470.2,1.2052]
[1728782052367,1.17,2470.3,2470.2,1.2052]
[1728782053081,1.17,2470.3,2470.2,2.3752]
[1728782053486,1.57486,2470.3,2470.2,1.2052]
[1728782053780,1.17,2470.3,2470.2,1.2052]
[1728782054266,1.57486,2470.3,2470.2,1.2052]
[1728782054669,1.17,2470.3,2470.2,1.2052]
[1728782055381,1.17,2470.3,2470.0,0.60491]
[1728782055382,0.40489,2470.2,2470.0,0.2]
[1728782055579,1.17,2470.2,2470.1,1.17]
[1728782055776,1.57488,2470.2,2470.1,1.17]
[1728782055983,0.40488,2470.2,2470.1,1.17]
[1728782056574,1.57488,2470.3,2470.1,1.17]
[1728782056881,0.40488,2470.2,2470.1,1.593]
[1728782059376,3.2078,2470.4,2470.1,5.641]
[1728782059582,4.7955,2470.7,2470.3,1.17]
[1728782059878,0.40482,2470.6,2470.4,1.17]
[1728782060179,0.40482,2470.6,2470.4,1.5632]
[1728782061284,3.2078,2470.7,2470.5,1.17]
[1728782061470,3.2078,2470.7,2470.6,1.17]
[1728782061971,3.2078,2470.7,2470.5,1.57482]
[1728782061972,4.3778,2470.7,2470.5,1.57482]
[1728782062584,1.17,2470.7,2470.5,1.57482]